bitfinex/quotes_BTCUSD_20251031
["timestamp","ask_amount","ask_price","bid_price","bid_amount"]
[1761912873438,0.12682308,110390.0,110380.0,0.0315]
[1761912873637,0.51773218,110390.0,110380.0,0.0315]
[1761912875461,0.12682308,110390.0,110380.0,0.0315]
[1761912875608,0.51773218,110390.0,110380.0,0.0315]
[1761912878358,0.12682308,110390.0,110380.0,0.05555]
[1761912881907,0.12682308,110390.0,110380.0,0.0315]
[1761912882541,0.51773218,110390.0,110380.0,0.0315]
[1761912882956,0.60755119,110390.0,110380.0,0.004]
[1761912883197,0.6973702,110390.0,110380.0,0.004]
[1761912883407,3.07355248,110390.0,110380.0,0.004]
[1761912883611,3.08776881,110390.0,110380.0,0.004]
[1761912883814,3.14876706,110390.0,110380.0,0.004]
[1761912884024,3.13455073,110390.0,110380.0,0.004]
[1761912884240,3.13455073,110390.0,110380.0,0.001]
[1761912884456,0.12685755,110360.0,110350.0,0.01127]
[1761912884686,0.12685755,110360.0,110350.0,0.02775]
[1761912885120,0.12685755,110360.0,110350.0,0.05133]
[1761912885605,0.12685755,110360.0,110350.0,0.17819905]
[1761912886456,0.12685755,110360.0,110350.0,0.18019905]
[1761912886891,2.0,110360.0,110350.0,0.18019905]
[1761912887114,0.12685559,110370.0,110350.0,0.18019905]
[1761912887328,0.12685559,110370.0,110360.0,0.05237]
[1761912887976,0.12685559,110370.0,110360.0,0.02879]
[1761912888219,0.12685755,110360.0,110350.0,0.03685]
[1761912888443,0.12685755,110360.0,110350.0,0.03785]
[1761912888650,0.12685755,110360.0,110350.0,0.03075]
[1761912888858,0.12685755,110360.0,110350.0,0.02775]
[1761912889973,0.12685755,110360.0,110350.0,0.02975]
[1761912890857,0.12685755,110360.0,110350.0,0.01453223]
[1761912890858,0.51776665,110360.0,110350.0,0.01453223]
[1761912891075,0.51776665,110360.0,110350.0,0.01953223]
[1761912891496,0.21667656,110360.0,110350.0,0.00826223]
[1761912891702,0.21667656,110360.0,110350.0,0.02474223]
[1761912892373,0.21667656,110360.0,110350.0,0.04832223]
[1761912892994,0.21667656,110360.0,110350.0,0.06063223]
[1761912893636,0.21667656,110360.0,110350.0,0.18750128]
[1761912894049,0.21667656,110360.0,110350.0,0.06063223]
[1761912894799,0.54500889,110370.0,110350.0,0.06063223]
[1761912895030,0.6348279,110370.0,110350.0,0.05937]
[1761912895237,0.12685755,110360.0,110350.0,0.05937]
[1761912895443,0.12685755,110360.0,110350.0,0.18623905]
[1761912895825,0.12685755,110360.0,110350.0,0.18423905]
[1761912896251,0.12685755,110360.0,110350.0,0.18023905]
[1761912896484,0.12685755,110360.0,110350.0,0.18223905]
[1761912896893,0.12685755,110360.0,110350.0,0.17923905]
[1761912897304,0.12685755,110360.0,110350.0,0.18423905]
[1761912898209,0.12685755,110360.0,110350.0,0.18623905]
[1761912898731,0.12685755,110360.0,110350.0,0.05937]
[1761912899667,0.12685755,110360.0,110350.0,0.18623905]
[1761912900926,0.2166746,110370.0,110350.0,0.18623905]
[1761912901153,0.12685559,110370.0,110360.0,0.05237]
[1761912901588,0.12685755,110360.0,110350.0,0.01931]
[1761912901804,0.12685755,110360.0,110350.0,0.03579]
[1761912902020,0.12685755,110360.0,110350.0,0.03505223]
[1761912902273,0.51776665,110360.0,110350.0,0.01357223]
[1761912902482,0.51776665,110360.0,110350.0,0.00426223]
[1761912902984,0.51776665,110360.0,110350.0,0.00326223]
[1761912903425,0.51776665,110360.0,110350.0,0.00826223]
[1761912904103,0.67204788,110360.0,110350.0,0.00826223]
[1761912904328,3.04823016,110360.0,110350.0,0.00826223]
[1761912904790,3.06520256,110360.0,110350.0,0.00626223]
[1761912905016,3.06520256,110360.0,110350.0,0.00726223]
[1761912905229,3.06520256,110360.0,110350.0,0.00226223]
[1761912905446,3.06520256,110360.0,110350.0,0.00426223]
[1761912906113,3.06520256,110360.0,110350.0,0.00126223]
[1761912906345,3.04823016,110360.0,110350.0,0.00126223]
[1761912907696,3.01204788,110360.0,110350.0,0.00126223]
[1761912908152,3.04823016,110360.0,110350.0,0.00126223]
[1761912908376,0.46685755,110360.0,110350.0,0.05363223]
[1761912908607,0.02724794,110370.0,110350.0,0.57141038]
[1761912908789,0.02724794,110370.0,110360.0,0.17922755]
[1761912909039,2.0,110370.0,110360.0,0.17922755]
[1761912911120,0.12682308,110390.0,110370.0,0.12683685]
[1761912911348,0.12682317,110390.0,110380.0,0.01648]
[1761912911806,0.15405926,110390.0,110380.0,0.04006]
[1761912912256,0.49405926,110390.0,110380.0,0.04006]
[1761912912937,0.02723609,110390.0,110380.0,0.16889457]
[1761912913152,0.34022015,110400.0,110390.0,0.12682308]
[1761912913369,0.02759759,110400.0,110390.0,0.16688308]
[1761912913588,0.12717593,110400.0,110390.0,0.04006]
[1761912913856,0.00036434,110400.0,110390.0,0.16688308]
[1761912914061,0.12717593,110400.0,110390.0,0.16688308]
[1761912914576,0.00036434,110400.0,110390.0,0.16688308]
[1761912914796,0.00036434,110400.0,110390.0,0.18800066]
[1761912915233,0.00036434,110400.0,110390.0,0.18900066]
[1761912915482,0.00036434,110400.0,110390.0,0.57968219]
[1761912915706,0.00036434,110400.0,110390.0,0.56156461]
[1761912915925,0.16309238,110410.0,110390.0,0.56156461]
[1761912916138,0.46680198,110410.0,110400.0,0.17802159]
[1761912916569,0.34,110410.0,110400.0,0.19613753]
[1761912916795,0.03649001,110420.0,110410.0,0.1268001]
[1761912917012,0.00925812,110420.0,110410.0,0.1780101]
[1761912917473,0.54475461,110430.0,110410.0,0.1961244]
[1761912917718,0.6073443,110430.0,110420.0,0.01602]
[1761912917932,0.616278,110430.0,110420.0,0.03982]
[1761912918135,0.956278,110430.0,110420.0,0.03982]
[1761912918792,0.16311695,110440.0,110420.0,0.56029015]
[1761912919015,2.0,110430.0,110420.0,0.12978862]
[1761912919436,0.62587987,110440.0,110420.0,0.14680862]
[1761912919645,0.96587987,110440.0,110430.0,0.02737]
[1761912919862,0.96587987,110440.0,110430.0,0.05117]
[1761912920503,0.57519834,110440.0,110430.0,0.05117]
[1761912920715,0.96587987,110440.0,110430.0,0.05117]
[1761912921140,0.57519834,110440.0,110430.0,0.05117]
[1761912921358,0.57619834,110440.0,110430.0,0.05117]
[1761912921648,0.48637933,110440.0,110430.0,0.05217]
[1761912921888,0.48537933,110440.0,110430.0,0.17894714]
[1761912922063,0.35854597,110440.0,110430.0,0.18094714]
[1761912922307,0.34949128,110440.0,110430.0,0.18094714]
[1761912922531,0.00949128,110440.0,110430.0,0.18094714]
[1761912922762,0.13625694,110440.0,110430.0,0.05417]
[1761912923212,0.13625694,110440.0,110430.0,0.18094714]
[1761912923426,0.00949128,110440.0,110430.0,0.18094714]
[1761912923866,0.13625694,110440.0,110430.0,0.05417]
[1761912925809,0.13625694,110440.0,110430.0,0.18094714]
[1761912925810,0.12724709,110440.0,110430.0,0.18094714]
[1761912926245,0.12724709,110440.0,110430.0,0.05417]
[1761912927104,0.12812736,110440.0,110430.0,0.05417]
[1761912927519,0.13746744,110440.0,110430.0,0.05417]
[1761912927768,0.01070178,110440.0,110430.0,0.18094714]
[1761912927983,0.0013617,110440.0,110430.0,0.58973969]
[1761912928210,0.0013617,110440.0,110430.0,0.57162867]
[1761912929347,0.0013617,110440.0,110430.0,0.57062867]
[1761912930207,0.0013617,110440.0,110430.0,0.56862867]
[1761912930430,0.0013617,110440.0,110430.0,0.17794714]
[1761912930648,0.0013617,110440.0,110430.0,0.59273969]
[1761912930862,0.0013617,110440.0,110430.0,0.57662867]
[1761912931093,0.0013617,110440.0,110430.0,1.05712921]
[1761912931541,0.0013617,110440.0,110430.0,0.66644768]
[1761912931780,0.0013617,110440.0,110430.0,1.05712921]
[1761912932008,0.0013617,110440.0,110430.0,0.66644768]
[1761912932228,0.0013617,110440.0,110430.0,0.18594714]
[1761912932436,0.0013617,110440.0,110430.0,0.57662867]
[1761912932655,0.0013617,110440.0,110430.0,0.18594714]
[1761912933297,0.0013617,110440.0,110430.0,0.05917]
[1761912933499,0.0013617,110440.0,110430.0,0.18594714]
[1761912934626,0.0013617,110440.0,110430.0,0.57662867]
[1761912934838,0.0013617,110440.0,110430.0,0.18594714]
[1761912935251,0.12812736,110440.0,110430.0,0.18594714]
[1761912935460,0.12812736,110440.0,110430.0,0.05917]
[1761912935667,0.12812736,110440.0,110430.0,0.18594714]
[1761912935888,0.0013617,110440.0,110430.0,0.57662867]
[1761912940693,0.0013617,110440.0,110430.0,0.66644768]
[1761912945752,0.0013617,110440.0,110430.0,0.27576615]
[1761912945960,0.0013617,110440.0,110430.0,0.66644768]
[1761912946399,0.0013617,110440.0,110430.0,0.57662867]
[1761912947480,0.12812736,110440.0,110430.0,0.57662867]
[1761912948317,0.46134585,110450.0,110440.0,0.02856]
[1761912948526,0.46149022,110450.0,110440.0,0.02856]
[1761912948963,0.0710287,110450.0,110440.0,0.02856]
[1761912949621,0.0710287,110450.0,110440.0,0.03156]
[1761912949837,0.00036438,110450.0,110440.0,0.57225719]
[1761912950074,0.00036438,110450.0,110440.0,0.57325719]
[1761912950511,0.00036438,110450.0,110440.0,0.18257566]
[1761912950757,0.02840845,110470.0,110460.0,0.12674271]
[1761912950983,0.0002,110480.0,110470.0,0.12673123]
[1761912951205,0.0002,110480.0,110470.0,0.14735347]
[1761912951429,0.12690884,110490.0,110470.0,0.14735347]
[1761912951430,0.51739037,110490.0,110480.0,0.01618]
[1761912951647,0.12708976,110480.0,110460.0,0.03563]
[1761912951863,0.52625176,110480.0,110460.0,0.16237158]
[1761912952969,0.12673123,110470.0,110460.0,0.03763]
[1761912953424,0.12673123,110470.0,110460.0,0.05381]
[1761912953892,0.12673123,110470.0,110460.0,0.05181]
[1761912954140,0.51778276,110470.0,110460.0,0.02856]
[1761912954349,0.12674271,110460.0,110450.0,0.03563]
[1761912954806,0.12674271,110460.0,110450.0,0.05181]
[1761912955445,0.12674271,110460.0,110450.0,0.17856418]
[1761912955856,0.12674271,110460.0,110450.0,0.05181]
[1761912956063,0.12674271,110460.0,110450.0,0.18256418]
[1761912956276,0.12674271,110460.0,110450.0,0.05581]
[1761912956497,0.12674271,110460.0,110450.0,0.18456418]
[1761912957135,0.12674271,110460.0,110450.0,0.05181]
[1761912957353,0.12674271,110460.0,110450.0,0.17856418]
[1761912957575,0.34905141,110480.0,110460.0,0.12674271]
[1761912957809,0.36544235,110480.0,110470.0,0.02856]
[1761912958025,0.49216211,110480.0,110470.0,0.17854123]
[1761912958447,0.49216211,110480.0,110470.0,0.05181]
[1761912958660,0.49253211,110480.0,110470.0,0.02856]
[1761912959073,0.88321364,110480.0,110470.0,0.02856]
[1761912959294,0.88521364,110480.0,110470.0,0.02856]
[1761912959525,0.88621364,110480.0,110470.0,0.02856]
[1761912959816,0.88584364,110480.0,110470.0,0.02856]
[1761912960054,0.88584364,110480.0,110470.0,0.05181]
[1761912960279,0.88584364,110480.0,110470.0,0.02856]
[1761912960280,0.88621364,110480.0,110470.0,0.02856]
[1761912960514,0.88584364,110480.0,110470.0,0.02856]
[1761912960759,0.88484364,110480.0,110470.0,0.02856]
[1761912960982,0.49416211,110480.0,110470.0,0.17954123]
[1761912961205,0.35048078,110480.0,110470.0,0.58832722]
[1761912961428,0.35048078,110480.0,110470.0,0.57022276]
[1761912961661,0.34848078,110480.0,110470.0,0.57022276]
[1761912961875,0.34848078,110480.0,110470.0,0.57222276]
[1761912963275,0.00848078,110480.0,110470.0,0.57222276]
[1761912963697,2.00065982,110480.0,110470.0,0.57222276]
[1761912963906,0.00061682,110480.0,110470.0,0.57222276]
[1761912964151,0.00061682,110480.0,110470.0,0.18154123]
[1761912964390,0.00061682,110480.0,110470.0,1.07082776]
[1761912964607,0.00061682,110480.0,110470.0,1.0527233]
[1761912964865,0.00061682,110480.0,110470.0,0.27136024]
[1761912965093,0.00061682,110480.0,110470.0,1.0527233]
[1761912965343,0.00061682,110480.0,110470.0,1.0497233]
[1761912965574,0.00061682,110480.0,110470.0,0.66604177]
[1761912965806,0.00061682,110480.0,110470.0,0.66804177]
[1761912966261,0.00061682,110480.0,110470.0,1.78940483]
[1761912966493,0.00014432,110490.0,110480.0,0.90808282]
[1761912966729,0.00014432,110490.0,110480.0,1.03733183]
[1761912966956,0.0002,110510.0,110500.0,0.12669683]
[1761912967185,0.0002,110510.0,110500.0,0.16097637]
[1761912967453,0.0002,110510.0,110500.0,0.18422637]
[1761912968538,0.0022,110510.0,110500.0,0.18422637]
[1761912968770,0.12888536,110510.0,110500.0,0.05752954]
[1761912968983,0.12888536,110510.0,110500.0,0.18422637]
[1761912969442,0.0022,110510.0,110500.0,0.18422637]
[1761912970535,0.12688536,110510.0,110500.0,0.18422637]
[1761912970761,0.0002,110510.0,110500.0,0.18422637]
[1761912970999,0.12688536,110510.0,110500.0,0.18822637]
[1761912971235,0.12688536,110510.0,110500.0,0.06152954]
[1761912971462,0.57113986,110510.0,110500.0,0.01718]
[1761912971680,0.57113986,110510.0,110500.0,0.001]
[1761912971899,2.64105436,110510.0,110500.0,0.001]
[1761912972123,2.64105436,110510.0,110500.0,0.002]
[1761912972422,2.6417139,110510.0,110500.0,0.002]
[1761912972652,2.5717994,110510.0,110500.0,0.001]
[1761912972887,0.12670292,110500.0,110490.0,0.12670829]
[1761912973369,0.12670829,110490.0,110480.0,0.15902117]
[1761912973592,0.12670829,110490.0,110480.0,0.02325]
[1761912973801,0.12670829,110490.0,110480.0,0.03943]
[1761912974446,0.12670829,110490.0,110480.0,0.16614976]
[1761912974648,0.12670829,110490.0,110480.0,0.17014976]
[1761912974875,2.0,110490.0,110480.0,0.17014976]
[1761912975108,2.0,110490.0,110480.0,0.16614976]
[1761912975318,0.12670829,110490.0,110480.0,0.16614976]
[1761912975528,0.12670829,110490.0,110480.0,0.16714976]
[1761912975765,0.12670829,110490.0,110480.0,0.16814976]
[1761912976215,0.56982742,110500.0,110480.0,0.16814976]
[1761912976459,0.12670292,110500.0,110490.0,0.14242829]
[1761912976648,2.0,110500.0,110490.0,0.16643829]
[1761912976921,0.57905881,110510.0,110490.0,0.16643829]
[1761912977132,2.0,110500.0,110490.0,0.15071829]
[1761912977574,0.23994796,110510.0,110490.0,0.16643829]
[1761912977816,0.58107796,110510.0,110500.0,0.01572]
[1761912979034,0.58207796,110510.0,110500.0,0.01572]
[1761912979266,0.58107796,110510.0,110500.0,0.01572]
[1761912979618,0.5827375,110510.0,110500.0,0.01572]
[1761912979855,0.5816075,110510.0,110500.0,0.01572]
[1761912980149,0.5846075,110510.0,110500.0,0.03854]
[1761912980413,0.5857375,110510.0,110500.0,0.01572]
[1761912980679,0.5827375,110510.0,110500.0,0.01572]
[1761912980962,0.5816075,110510.0,110500.0,0.01572]
[1761912981213,0.02410313,110510.0,110500.0,0.16523683]
[1761912981663,0.02410313,110510.0,110500.0,0.18333637]
[1761912981867,0.01505418,110510.0,110500.0,0.18333637]
[1761912982808,0.14173954,110510.0,110500.0,0.18333637]
[1761912983019,0.14173954,110510.0,110500.0,0.19473637]
[1761912984173,0.14173954,110510.0,110500.0,0.17663683]
[1761912984478,0.14173954,110510.0,110500.0,0.04994]
[1761912984697,0.14286954,110510.0,110500.0,0.02712]
[1761912987014,0.12669683,110500.0,110490.0,0.03422]
[1761912987221,0.12782683,110500.0,110490.0,0.15447829]
[1761912987439,0.12782683,110500.0,110490.0,0.02777]
[1761912987879,0.51794341,110500.0,110490.0,0.02777]
[1761912987995,0.12670829,110490.0,110480.0,0.04327141]
[1761912988231,0.51794341,110500.0,110490.0,0.02777]
[1761912988431,0.12669683,110500.0,110490.0,0.02777]
[1761912988843,0.12669683,110500.0,110490.0,0.05159]
[1761912989243,0.12669683,110500.0,110490.0,0.05259]
[1761912989646,0.12669683,110500.0,110490.0,0.05059]
[1761912989850,0.12782683,110500.0,110490.0,0.02777]
[1761912990564,0.12670829,110490.0,110480.0,0.0114]
[1761912990702,0.12783829,110490.0,110480.0,0.02777]
[1761912990909,0.12783829,110490.0,110480.0,0.05059]
[1761912991111,0.12670829,110490.0,110480.0,0.05059]
[1761912992154,0.12670829,110490.0,110480.0,0.05159]
[1761912992389,0.12670829,110490.0,110450.0,0.48837073]
[1761912992390,4.32271949,110490.0,110450.0,0.00118076]
[1761912992624,4.32271949,110490.0,110420.0,0.0114]
[1761912992625,2.12677714,110430.0,110420.0,0.0114]
[1761912992849,2.12677714,110430.0,110420.0,0.01188143]
[1761912993064,2.12790714,110430.0,110420.0,0.02825143]
[1761912993282,2.81008684,110430.0,110420.0,0.02825143]
[1761912993496,2.81008684,110430.0,110420.0,0.01188143]
[1761912993702,2.81008684,110430.0,110420.0,0.02925143]
[1761912994138,2.81008684,110430.0,110420.0,0.02825143]
[1761912994378,2.80895684,110430.0,110420.0,0.05207143]
[1761912994595,0.12677714,110430.0,110420.0,0.05207143]
[1761912995248,0.81008684,110430.0,110420.0,0.02925143]
[1761912995460,0.81008684,110430.0,110420.0,0.03025143]
[1761912995694,0.12677714,110430.0,110420.0,0.04167143]
[1761912995910,0.12677714,110430.0,110420.0,0.01885143]
[1761912995911,2.81008684,110430.0,110420.0,0.01885143]
[1761912996116,2.81008684,110430.0,110420.0,0.00248143]
[1761912996555,2.81121684,110430.0,110420.0,0.00248143]
[1761912996770,3.27721813,110430.0,110420.0,0.00248143]
[1761912996981,3.36703714,110430.0,110420.0,0.00248143]
[1761912997609,3.36703714,110430.0,110420.0,0.00148143]
[1761912997823,2.46677714,110430.0,110420.0,0.04067143]
[1761912998081,0.46877714,110430.0,110420.0,0.04067143]
[1761912998313,0.46877714,110430.0,110420.0,0.04033165]
[1761912998734,0.47477714,110430.0,110420.0,0.04033165]
[1761913000234,1.15695684,110430.0,110420.0,0.04033165]
[1761913000445,1.16872711,110430.0,110420.0,0.04033165]
[1761913001616,1.16985711,110430.0,110420.0,0.01751165]
[1761913003662,1.16985711,110430.0,110420.0,0.00114165]
[1761913003893,3.16985711,110430.0,110420.0,0.00114165]
[1761913005052,3.16985711,110430.0,110420.0,0.01673165]
[1761913005271,3.16872711,110430.0,110420.0,0.01673165]
[1761913005495,3.17098711,110430.0,110420.0,0.00114165]
[1761913006639,3.16985711,110430.0,110420.0,0.00114165]
[1761913007547,3.17098711,110430.0,110420.0,0.00114165]
[1761913008752,3.2969884,110430.0,110420.0,0.00114165]
[1761913010196,3.26080612,110430.0,110420.0,0.00114165]
[1761913010403,3.2969884,110430.0,110420.0,0.00114165]
[1761913010817,0.12681159,110400.0,110380.0,0.0114]
[1761913011061,0.12682308,110390.0,110380.0,0.05263359]
[1761913011302,0.12681159,110400.0,110390.0,0.0122]
[1761913011529,0.12681159,110400.0,110390.0,0.17758308]
[1761913011729,1.29201364,110430.0,110390.0,0.17758308]
[1761913011730,0.13783265,110430.0,110400.0,0.12681158]
[1761913011946,0.12877714,110430.0,110420.0,0.02779]
[1761913012168,0.12877714,110430.0,110420.0,0.04590266]
[1761913012388,0.12877714,110430.0,110420.0,0.06887266]
[1761913012814,0.12677714,110430.0,110420.0,0.06887266]
[1761913013024,0.12725789,110430.0,110420.0,0.05076]
[1761913013810,0.12825789,110430.0,110420.0,0.05076]
[1761913014589,0.12925789,110430.0,110420.0,0.05076]
[1761913016021,0.00248075,110430.0,110420.0,0.17754862]
[1761913016250,0.12925789,110430.0,110420.0,0.19566128]
[1761913016603,0.00248075,110430.0,110420.0,0.19566128]
[1761913017224,0.12925789,110430.0,110420.0,0.19566128]
[1761913017863,0.00248075,110430.0,110420.0,0.28548029]
[1761913018060,0.00248075,110430.0,110420.0,0.26736763]
[1761913018266,0.12925789,110430.0,110420.0,0.26736763]
[1761913018480,0.00248075,110430.0,110420.0,0.26736763]
[1761913018704,0.00148075,110430.0,110420.0,0.26736763]
[1761913018922,0.12725789,110430.0,110420.0,0.26736763]
[1761913020136,0.12725789,110430.0,110420.0,0.26836763]
[1761913021533,0.12725789,110430.0,110420.0,0.14157901]
[1761913021734,0.12725789,110430.0,110420.0,0.15969167]
[1761913022617,0.81056759,110430.0,110420.0,0.02879]
[1761913023286,0.82753134,110430.0,110420.0,0.02879]
[1761913023506,0.82753134,110430.0,110420.0,0.02779]
[1761913023719,0.12825789,110430.0,110420.0,0.05076]
[1761913023948,0.14622099,110430.0,110420.0,0.05076]
[1761913024153,0.12925789,110430.0,110420.0,0.05076]
[1761913024798,0.00248075,110430.0,110420.0,0.26736763]
[1761913025066,0.00248075,110430.0,110420.0,0.94954733]
[1761913025267,7.5e-07,110430.0,110420.0,0.94954733]
[1761913025476,7.5e-07,110430.0,110420.0,0.26736763]
[1761913025677,0.01420473,110440.0,110430.0,0.12677714]
[1761913025855,0.01420473,110440.0,110430.0,0.19579253]
[1761913026900,0.01420473,110440.0,110430.0,0.06901539]
[1761913026901,0.14097039,110440.0,110430.0,0.06901539]
[1761913027120,0.14097039,110440.0,110430.0,0.19579253]
[1761913027352,0.14097039,110440.0,110430.0,0.06901539]
[1761913027775,0.14097039,110440.0,110430.0,0.19679253]
[1761913028204,0.14097039,110440.0,110430.0,0.07001539]
[1761913028434,0.14097039,110440.0,110430.0,0.19679253]
[1761913028647,0.01420473,110440.0,110430.0,0.19679253]
[1761913028856,0.12676566,110440.0,110430.0,0.19679253]
[1761913029257,0.13688328,110450.0,110440.0,0.12676566]
[1761913029258,0.00104098,110450.0,110440.0,0.12676566]
[1761913029495,0.00104098,110450.0,110440.0,0.16532566]
[1761913030101,0.12779516,110450.0,110440.0,0.16532566]
[1761913030313,0.12779516,110450.0,110440.0,0.03856]
[1761913030536,0.12779516,110450.0,110440.0,0.05666938]
[1761913030964,0.12779516,110450.0,110440.0,0.03856]
[1761913035269,0.12779516,110450.0,110440.0,0.16532566]
[1761913035483,0.00104098,110450.0,110440.0,0.16532566]
[1761913035703,0.14505069,110460.0,110440.0,0.18343504]
[1761913035891,0.12675418,110450.0,110440.0,0.14487504]
[1761913036511,0.12675418,110450.0,110440.0,0.18412504]
[1761913036757,0.12675418,110450.0,110440.0,0.16601566]
[1761913037187,0.003,110460.0,110450.0,0.46675418]
[1761913037409,0.14507841,110500.0,110490.0,0.12670814]
[1761913037410,0.12669683,110500.0,110490.0,0.12670814]
[1761913037631,0.13053978,110510.0,110490.0,0.15512814]
[1761913037848,0.17235713,110510.0,110500.0,0.01636]
[1761913038498,0.15231713,110510.0,110500.0,0.03925]
[1761913038714,0.13553066,110510.0,110500.0,0.03925]
[1761913039130,0.47553066,110510.0,110500.0,0.03925]
[1761913039341,0.12707407,110510.0,110500.0,0.03925]
[1761913039556,0.12707407,110510.0,110490.0,0.03495]
[1761913039557,0.12669683,110500.0,110490.0,0.03495]
[1761913039996,0.14312683,110500.0,110490.0,0.02842]
[1761913040436,0.07699821,110510.0,110490.0,0.05131]
[1761913040647,0.14312683,110500.0,110490.0,0.01206]
[1761913040859,0.12670829,110490.0,110480.0,0.03495]
[1761913041066,0.12670829,110490.0,110480.0,0.25148877]
[1761913041279,0.12669683,110500.0,110480.0,0.26784877]
[1761913041520,0.00192047,110490.0,110480.0,0.25148877]
[1761913041963,0.00192047,110490.0,110480.0,0.24495877]
[1761913042405,0.00192047,110490.0,110480.0,0.24595877]
[1761913042631,0.00192047,110490.0,110480.0,0.71207396]
[1761913043083,0.00192047,110490.0,110480.0,0.71507396]
[1761913044180,0.00192047,110490.0,110480.0,0.27184877]
[1761913045376,0.00192047,110490.0,110480.0,0.71507396]
[1761913046065,0.00192047,110490.0,110480.0,1.50829914]
[1761913046300,0.00192047,110490.0,110480.0,1.54448142]
[1761913046550,0.00014429,110510.0,110500.0,0.56992202]
[1761913046775,0.00014429,110510.0,110500.0,0.67579103]
[1761913046995,0.00014429,110510.0,110500.0,0.69950103]
[1761913048082,0.00014429,110510.0,110500.0,0.25727584]
[1761913049449,0.00014429,110510.0,110500.0,0.25927584]
[1761913051267,0.00014429,110510.0,110500.0,0.70250103]
[1761913052154,0.00058396,110510.0,110500.0,0.70250103]
[1761913055975,0.00058396,110510.0,110500.0,0.25927584]
[1761913056422,0.00058396,110510.0,110500.0,0.70250103]
[1761913056644,0.00058396,110510.0,110500.0,1.04250103]
[1761913056909,0.00058396,110510.0,110500.0,1.20180102]
[1761913057370,0.0002,110520.0,110510.0,0.52286762]
[1761913057599,0.0002,110520.0,110510.0,1.09707183]
[1761913058721,0.0002,110520.0,110510.0,0.65984664]
[1761913058933,0.0002,110520.0,110510.0,1.10307183]
[1761913059816,0.0002,110520.0,110510.0,1.10507183]
[1761913060935,0.0002,110520.0,110510.0,1.05888956]
[1761913062983,0.0004198,110520.0,110510.0,1.05888956]
[1761913063379,0.0004198,110520.0,110510.0,0.61566437]
[1761913064026,0.0004198,110520.0,110510.0,1.05888956]
[1761913064338,0.0004198,110520.0,110510.0,1.05288956]
[1761913064550,0.0004198,110520.0,110510.0,1.05388956]
[1761913064773,0.0004198,110520.0,110510.0,1.05488956]
[1761913065871,0.58330085,110550.0,110540.0,0.12665098]
[1761913065872,0.0002,110550.0,110540.0,0.12665098]
[1761913066104,0.0002,110560.0,110550.0,0.12663952]
[1761913066326,0.00034423,110560.0,110550.0,1.06187371]
[1761913066541,0.00034423,110560.0,110550.0,1.05187372]
[1761913066746,0.00034423,110560.0,110550.0,0.60864853]
[1761913066961,0.00034423,110560.0,110550.0,1.05087372]
[1761913067631,0.00034423,110560.0,110550.0,1.05187372]
[1761913068307,0.00034423,110560.0,110550.0,1.05487372]
[1761913074796,0.00034423,110560.0,110550.0,0.61164853]
[1761913075004,0.00034423,110560.0,110550.0,0.27164853]
[1761913075250,0.00122307,110560.0,110550.0,0.05619]
[1761913075465,0.14308114,110560.0,110550.0,0.05074136]
[1761913075669,0.14308114,110560.0,110550.0,0.15928952]
[1761913075817,0.14308114,110560.0,110550.0,0.05619]
[1761913076020,0.14308114,110560.0,110550.0,0.18282952]
[1761913076243,0.12785114,110560.0,110550.0,0.17982952]
[1761913076449,0.12785114,110560.0,110550.0,0.17882952]
[1761913076667,0.12785114,110560.0,110550.0,0.05219]
[1761913076878,0.12785114,110560.0,110550.0,0.17882952]
[1761913077096,0.12785114,110560.0,110550.0,0.05219]
[1761913077544,0.14308114,110560.0,110550.0,0.02865]
[1761913078183,0.15151912,110560.0,110550.0,0.02865]
[1761913078411,0.15151912,110560.0,110530.0,0.17150975]
[1761913078412,0.12663952,110550.0,110530.0,0.17150975]
[1761913078626,0.14647952,110550.0,110540.0,0.01639]
[1761913078851,0.14647952,110550.0,110540.0,0.14304098]
[1761913079541,0.14647952,110550.0,110530.0,0.70455395]
[1761913079765,0.15492113,110550.0,110540.0,0.01639]
[1761913079993,0.15692113,110550.0,110540.0,0.01639]
[1761913080197,0.15792113,110550.0,110540.0,0.01639]
[1761913080413,0.15492113,110550.0,110540.0,0.01639]
[1761913080635,0.15692113,110550.0,110540.0,0.01639]
[1761913080854,0.15792113,110550.0,110540.0,0.01639]
[1761913081078,0.01044161,110550.0,110540.0,0.16658098]
[1761913081714,0.13708113,110550.0,110540.0,0.16658098]
[1761913081922,0.13508113,110550.0,110540.0,0.03993]
[1761913082128,0.13708113,110550.0,110540.0,0.16658098]
[1761913082336,0.13808113,110550.0,110540.0,0.16658098]
[1761913082751,0.13508113,110550.0,110540.0,0.16658098]
[1761913083067,0.13508113,110550.0,110540.0,0.16758098]
[1761913083594,0.00844161,110550.0,110540.0,0.16758098]
[1761913084059,0.15206877,110560.0,110540.0,0.16758098]
[1761913084278,0.16729877,110560.0,110540.0,0.15119098]
[1761913084531,0.16729877,110560.0,110550.0,0.02865]
[1761913084975,0.16817761,110560.0,110550.0,0.02865]
[1761913085400,0.17017761,110560.0,110550.0,0.02865]
[1761913085637,0.12663952,110550.0,110530.0,0.10207901]
[1761913085863,0.59353632,110550.0,110540.0,0.01639]
[1761913086087,0.12665098,110540.0,110530.0,0.0358]
[1761913086312,0.15032259,110540.0,110530.0,0.02865]
[1761913087168,0.15032259,110540.0,110530.0,0.15631244]
[1761913087405,0.00844161,110540.0,110530.0,0.17985244]
[1761913087728,0.00034423,110560.0,110550.0,0.12663952]
[1761913088019,0.00034423,110560.0,110550.0,0.72996508]
[1761913088343,0.00034423,110560.0,110550.0,0.26864853]
[1761913088773,0.00034423,110560.0,110550.0,0.71087372]
[1761913089210,0.00034423,110560.0,110550.0,0.26864853]
[1761913089418,0.00034423,110560.0,110550.0,0.17882952]
[1761913089624,0.00034423,110560.0,110550.0,0.19792088]
[1761913090060,0.00034423,110560.0,110550.0,0.20192088]
[1761913090277,0.00034423,110560.0,110550.0,0.18382952]
[1761913090941,0.00034423,110560.0,110550.0,0.71687372]
[1761913092950,0.00034423,110560.0,110550.0,0.27364853]
[1761913093638,0.00122307,110560.0,110550.0,0.27364853]
[1761913094315,0.00122307,110560.0,110550.0,0.18382952]
[1761913094543,0.00122307,110560.0,110550.0,0.05319]
[1761913094762,0.12785114,110560.0,110550.0,0.18082952]
[1761913094976,0.00122307,110560.0,110550.0,0.18082952]
[1761913095191,0.00122307,110560.0,110550.0,0.19863259]
[1761913095404,0.00122307,110560.0,110550.0,0.19763259]
[1761913097823,0.01736307,110560.0,110550.0,0.03106307]
[1761913098062,0.16657114,110560.0,110550.0,0.001]
[1761913098696,2.33045768,110560.0,110550.0,0.001]
[1761913098911,0.12665098,110540.0,110530.0,0.02130731]
[1761913099124,0.12665098,110540.0,110530.0,0.13892244]
[1761913099336,0.12709048,110540.0,110530.0,0.02809]
[1761913099540,0.14270048,110540.0,110530.0,0.02809]